[Event "Titled Tuesday Blitz May 30 Early 2023"]
[White "Gulkov, Igor A."]
[Black "Coelho, Ramyres Santana"]
[WhiteFideId "4120973"]
[BlackFideId "2120690"]
[WhiteElo "2343"]
[BlackElo "1888"]
[Result "0-1"]
[Round "02"]
[TimeControl "180+2"]
[Date "2023.05.30"]
[WhiteClock "0:00:39"]
[BlackClock "0:00:51"]

1. Nf3 {[%clk 0:02:59]}  Nf6 {[%clk 0:02:58]} 2. c4 {[%clk 0:02:54]}  g6 {[%clk 0:02:49]} 3. Nc3 {[%clk 0:02:53]}  Bg7 {[%clk 0:02:49]} 4. e4 {[%clk 0:02:41]}  d6 {[%clk 0:02:49]} 5. d4 {[%clk 0:02:41]}  O-O {[%clk 0:02:48]} 6. Be2 {[%clk 0:02:41]}  e5 {[%clk 0:02:48]} 7. Be3 {[%clk 0:02:41]}  exd4 {[%clk 0:02:47]} 8. Nxd4 {[%clk 0:02:41]}  Nc6 {[%clk 0:02:47]} 9. Qd2 {[%clk 0:02:40]}  Nxd4 {[%clk 0:02:48]} 10. Bxd4 {[%clk 0:02:40]}  Re8 {[%clk 0:02:48]} 11. f3 {[%clk 0:02:40]}  Nd7 {[%clk 0:02:46]} 12. O-O {[%clk 0:02:40]}  Bxd4+ {[%clk 0:02:46]} 13. Qxd4 {[%clk 0:02:40]}  Qf6 {[%clk 0:02:47]} 14. Qxf6 {[%clk 0:02:36]}  Nxf6 {[%clk 0:02:48]} 15. Nb5 {[%clk 0:02:36]}  Re7 {[%clk 0:02:46]} 16. Rac1 {[%clk 0:02:35]}  a6 {[%clk 0:02:45]} 17. Nd4 {[%clk 0:02:34]}  c6 {[%clk 0:02:37]} 18. Rfd1 {[%clk 0:02:32]}  d5 {[%clk 0:02:32]} 19. exd5 {[%clk 0:02:31]}  cxd5 {[%clk 0:02:32]} 20. c5 {[%clk 0:02:31]}  Bd7 {[%clk 0:02:27]} 21. Kf2 {[%clk 0:02:31]}  Bc6 {[%clk 0:02:27]} 22. Rd2 {[%clk 0:02:30]}  Nd7 {[%clk 0:02:25]} 23. b4 {[%clk 0:02:29]}  Ne5 {[%clk 0:02:17]} 24. f4 {[%clk 0:02:19]}  Nd7 {[%clk 0:02:07]} 25. Bf3 {[%clk 0:02:18]}  Nf6 {[%clk 0:02:07]} 26. g3 {[%clk 0:02:17]}  Rae8 {[%clk 0:02:03]} 27. Rcc2 {[%clk 0:02:10]}  Ne4+ {[%clk 0:02:03]} 28. Bxe4 {[%clk 0:02:09]}  Rxe4 {[%clk 0:02:03]} 29. Rc3 {[%clk 0:02:01]}  f5 {[%clk 0:02:01]} 30. a3 {[%clk 0:01:58]}  Kf7 {[%clk 0:02:01]} 31. Nf3 {[%clk 0:01:58]}  Kf6 {[%clk 0:01:54]} 32. Ne5 {[%clk 0:01:56]}  R8xe5 {[%clk 0:01:52]} 33. fxe5+ {[%clk 0:01:56]}  Kxe5 {[%clk 0:01:53]} 34. Rc1 {[%clk 0:01:44]}  d4 {[%clk 0:01:50]} 35. Re1 {[%clk 0:01:44]}  g5 {[%clk 0:01:48]} 36. Ra2 {[%clk 0:01:37]}  Bd5 {[%clk 0:01:41]} 37. Rb2 {[%clk 0:01:34]}  Bc4 {[%clk 0:01:38]} 38. Rc1 {[%clk 0:01:27]}  d3 {[%clk 0:01:33]} 39. Re1 {[%clk 0:01:15]}  Kd4 {[%clk 0:01:31]} 40. Rd2 {[%clk 0:01:09]}  Kc3 {[%clk 0:01:26]} 41. Rxe4 {[%clk 0:01:07]}  fxe4 {[%clk 0:01:27]} 42. Ke3 {[%clk 0:01:07]}  Bd5 {[%clk 0:01:25]} 43. h4 {[%clk 0:00:59]}  h6 {[%clk 0:01:21]} 44. hxg5 {[%clk 0:00:56]}  hxg5 {[%clk 0:01:22]} 45. Rh2 {[%clk 0:00:56]}  Kb3 {[%clk 0:01:12]} 46. Rh5 {[%clk 0:00:56]}  Kxa3 {[%clk 0:01:04]} 47. Rxg5 {[%clk 0:00:56]}  Bc6 {[%clk 0:01:05]} 48. g4 {[%clk 0:00:56]}  Kxb4 {[%clk 0:01:04]} 49. Re5 {[%clk 0:00:48]}  Kc3 {[%clk 0:01:01]} 50. Rh5 {[%clk 0:00:44]}  d2 {[%clk 0:00:57]} 51. Rh1 {[%clk 0:00:44]}  Ba4 {[%clk 0:00:55]} 52. g5 {[%clk 0:00:43]}  d1=Q {[%clk 0:00:54]} 53. Rxd1 {[%clk 0:00:43]}  Bxd1 {[%clk 0:00:54]} 54. g6 {[%clk 0:00:39]}  Bb3 {[%clk 0:00:51]} 0-1


[Site "https://www.chess.com"]

[Event "Titled Tuesday Blitz May 30 Early 2023"]
[White "FunnyDuck66"]
[Black "Pham, Le Thao Nguyen"]
[BlackFideId "12401226"]
[WhiteElo "2213"]
[BlackElo "2286"]
[Result "1-0"]
[Round "02"]
[TimeControl "180+2"]
[Date "2023.05.30"]
[WhiteClock "0:00:17"]
[BlackClock "0:00:00"]

1. d4 {[%clk 0:03:00]}  d5 {[%clk 0:02:57]} 2. c4 {[%clk 0:03:00]}  c6 {[%clk 0:02:57]} 3. cxd5 {[%clk 0:03:00]}  cxd5 {[%clk 0:02:57]} 4. Bf4 {[%clk 0:03:01]}  Nc6 {[%clk 0:02:55]} 5. e3 {[%clk 0:03:01]}  Nf6 {[%clk 0:02:53]} 6. Bd3 {[%clk 0:02:58]}  Qb6 {[%clk 0:02:43]} 7. Qe2 {[%clk 0:01:57]}  Bg4 {[%clk 0:02:18]} 8. f3 {[%clk 0:01:27]}  Bh5 {[%clk 0:02:17]} 9. Nc3 {[%clk 0:01:25]}  a6 {[%clk 0:02:05]} 10. Qd2 {[%clk 0:01:21]}  e6 {[%clk 0:02:01]} 11. Nge2 {[%clk 0:01:19]}  Be7 {[%clk 0:01:51]} 12. O-O {[%clk 0:01:14]}  O-O {[%clk 0:01:51]} 13. Rac1 {[%clk 0:01:11]}  Rac8 {[%clk 0:01:45]} 14. Na4 {[%clk 0:01:07]}  Qb4 {[%clk 0:01:43]} 15. Qxb4 {[%clk 0:01:05]}  Nxb4 {[%clk 0:01:42]} 16. Bb1 {[%clk 0:01:04]}  Bg6 {[%clk 0:01:40]} 17. Bxg6 {[%clk 0:00:39]}  hxg6 {[%clk 0:01:39]} 18. Nb6 {[%clk 0:00:38]}  Rxc1 {[%clk 0:01:31]} 19. Rxc1 {[%clk 0:00:39]}  Bd8 {[%clk 0:01:01]} 20. Bd6 {[%clk 0:00:31]}  Nxa2 {[%clk 0:00:53]} 21. Ra1 {[%clk 0:00:28]}  Bxb6 {[%clk 0:00:46]} 22. Bxf8 {[%clk 0:00:27]}  Kxf8 {[%clk 0:00:47]} 23. Rxa2 {[%clk 0:00:27]}  Ke7 {[%clk 0:00:46]} 24. Ra1 {[%clk 0:00:27]}  Kd7 {[%clk 0:00:45]} 25. Rc1 {[%clk 0:00:27]}  Ne8 {[%clk 0:00:45]} 26. Nc3 {[%clk 0:00:27]}  Nd6 {[%clk 0:00:45]} 27. Na4 {[%clk 0:00:27]}  Ba7 {[%clk 0:00:45]} 28. b3 {[%clk 0:00:28]}  f5 {[%clk 0:00:36]} 29. Kf2 {[%clk 0:00:26]}  f4 {[%clk 0:00:34]} 30. g4 {[%clk 0:00:20]}  Nb5 {[%clk 0:00:21]} 31. Nc5+ {[%clk 0:00:19]}  Bxc5 {[%clk 0:00:20]} 32. Rxc5 {[%clk 0:00:20]}  fxe3+ {[%clk 0:00:19]} 33. Kxe3 {[%clk 0:00:21]}  Nc7 {[%clk 0:00:16]} 34. h4 {[%clk 0:00:21]}  Kd6 {[%clk 0:00:17]} 35. Rc1 {[%clk 0:00:20]}  a5 {[%clk 0:00:15]} 36. h5 {[%clk 0:00:17]}  gxh5 {[%clk 0:00:14]} 37. gxh5 {[%clk 0:00:18]}  b6 {[%clk 0:00:10]} 38. Rg1 {[%clk 0:00:18]}  Ne8 {[%clk 0:00:11]} 39. Kf4 {[%clk 0:00:17]}  b5 {[%clk 0:00:04]} 40. Ra1 {[%clk 0:00:17]}  Nf6 {[%clk 0:00:05]} 41. Kg5 {[%clk 0:00:16]}  a4 {[%clk 0:00:03]} 42. bxa4 {[%clk 0:00:16]}  bxa4 {[%clk 0:00:00]} 43. Rxa4 {[%clk 0:00:17]} 1-0


[Site "https://www.chess.com"]

[Event "Titled Tuesday Blitz May 30 Early 2023"]
[White "Sowul, Bartosz"]
[Black "Borodavkin, Anatoly"]
[WhiteFideId "1137590"]
[BlackFideId "14150662"]
[WhiteElo "2188"]
[BlackElo "1991"]
[Result "1-0"]
[Round "02"]
[TimeControl "180+2"]
[Date "2023.05.30"]
[WhiteClock "0:00:28"]
[BlackClock "0:00:00"]

1. e4 {[%clk 0:03:00]}  e5 {[%clk 0:02:56]} 2. Nf3 {[%clk 0:03:00]}  Nf6 {[%clk 0:02:50]} 3. Nc3 {[%clk 0:02:58]}  Bb4 {[%clk 0:02:45]} 4. Bc4 {[%clk 0:02:55]}  O-O {[%clk 0:02:44]} 5. O-O {[%clk 0:02:54]}  d6 {[%clk 0:02:37]} 6. d3 {[%clk 0:02:51]}  h6 {[%clk 0:02:33]} 7. h3 {[%clk 0:02:51]}  Be6 {[%clk 0:02:27]} 8. Bb3 {[%clk 0:02:48]}  a5 {[%clk 0:02:17]} 9. Ne2 {[%clk 0:02:39]}  Bc5 {[%clk 0:02:08]} 10. c3 {[%clk 0:02:33]}  b5 {[%clk 0:02:04]} 11. Ng3 {[%clk 0:02:29]}  Nc6 {[%clk 0:01:56]} 12. Bxe6 {[%clk 0:02:23]}  fxe6 {[%clk 0:01:55]} 13. Qb3 {[%clk 0:02:23]}  Qd7 {[%clk 0:01:43]} 14. Qxb5 {[%clk 0:02:18]}  Rfb8 {[%clk 0:01:04]} 15. Qa4 {[%clk 0:02:16]}  Nd4 {[%clk 0:00:54]} 16. Qd1 {[%clk 0:02:13]}  Nxf3+ {[%clk 0:00:53]} 17. Qxf3 {[%clk 0:02:14]}  Rf8 {[%clk 0:00:49]} 18. Qe2 {[%clk 0:02:06]}  Rab8 {[%clk 0:00:44]} 19. b3 {[%clk 0:02:05]}  d5 {[%clk 0:00:39]} 20. Be3 {[%clk 0:01:40]}  d4 {[%clk 0:00:36]} 21. Bd2 {[%clk 0:01:38]}  dxc3 {[%clk 0:00:28]} 22. Bxc3 {[%clk 0:01:39]}  Bd4 {[%clk 0:00:28]} 23. Rac1 {[%clk 0:01:38]}  Rfd8 {[%clk 0:00:27]} 24. Bxa5 {[%clk 0:01:35]}  Rb7 {[%clk 0:00:26]} 25. Rc2 {[%clk 0:01:31]}  Ra8 {[%clk 0:00:23]} 26. Bd2 {[%clk 0:01:25]}  c5 {[%clk 0:00:23]} 27. Kh2 {[%clk 0:01:20]}  Ra3 {[%clk 0:00:20]} 28. f4 {[%clk 0:01:16]}  exf4 {[%clk 0:00:19]} 29. Bxf4 {[%clk 0:01:15]}  Rba7 {[%clk 0:00:18]} 30. Nh5 {[%clk 0:01:09]}  Nxh5 {[%clk 0:00:14]} 31. Qxh5 {[%clk 0:01:10]}  Rxa2 {[%clk 0:00:14]} 32. Rxa2 {[%clk 0:01:08]}  Rxa2 {[%clk 0:00:13]} 33. Qg4 {[%clk 0:01:06]}  Kh7 {[%clk 0:00:11]} 34. h4 {[%clk 0:01:05]}  Qe7 {[%clk 0:00:09]} 35. Bg3 {[%clk 0:00:59]}  Rb2 {[%clk 0:00:08]} 36. h5 {[%clk 0:00:46]}  Qg5 {[%clk 0:00:07]} 37. Qxg5 {[%clk 0:00:36]}  hxg5 {[%clk 0:00:08]} 38. Kh3 {[%clk 0:00:37]}  Rxb3 {[%clk 0:00:08]} 39. Rf3 {[%clk 0:00:37]}  e5 {[%clk 0:00:05]} 40. Kg4 {[%clk 0:00:37]}  Rb2 {[%clk 0:00:03]} 41. Kxg5 {[%clk 0:00:34]}  Rxg2 {[%clk 0:00:02]} 42. Kf5 {[%clk 0:00:35]}  Kh6 {[%clk 0:00:00]} 43. Kg4 {[%clk 0:00:28]} 1-0


[Site "https://www.chess.com"]

[Event "Titled Tuesday Blitz May 30 Early 2023"]
[White "Santos Flores, Alberto"]
[Black "Samaganova, Aleksandra"]
[WhiteFideId "3601234"]
[BlackFideId "13800221"]
[WhiteElo "2235"]
[BlackElo "1858"]
[Result "1-0"]
[Round "02"]
[TimeControl "180+2"]
[Date "2023.05.30"]
[WhiteClock "0:00:07"]
[BlackClock "0:00:00"]

1. e4 {[%clk 0:03:00]}  c5 {[%clk 0:02:59]} 2. Nf3 {[%clk 0:03:01]}  e6 {[%clk 0:02:59]} 3. g3 {[%clk 0:03:00]}  Nc6 {[%clk 0:02:59]} 4. Bg2 {[%clk 0:03:00]}  g6 {[%clk 0:02:59]} 5. d4 {[%clk 0:03:00]}  cxd4 {[%clk 0:02:59]} 6. Nxd4 {[%clk 0:03:01]}  a6 {[%clk 0:02:53]} 7. Nc3 {[%clk 0:02:57]}  Bg7 {[%clk 0:02:51]} 8. Be3 {[%clk 0:02:57]}  Nge7 {[%clk 0:02:46]} 9. O-O {[%clk 0:02:56]}  O-O {[%clk 0:02:43]} 10. Nb3 {[%clk 0:02:50]}  b5 {[%clk 0:02:30]} 11. f4 {[%clk 0:02:49]}  Bb7 {[%clk 0:02:24]} 12. e5 {[%clk 0:02:49]}  Qc7 {[%clk 0:01:29]} 13. Nc5 {[%clk 0:02:43]}  Rfd8 {[%clk 0:01:22]} 14. Nxb7 {[%clk 0:02:42]}  Qxb7 {[%clk 0:01:22]} 15. Ne4 {[%clk 0:02:28]}  Nd5 {[%clk 0:01:14]} 16. Bf2 {[%clk 0:02:27]}  Bf8 {[%clk 0:01:07]} 17. Nd6 {[%clk 0:02:24]}  Bxd6 {[%clk 0:01:00]} 18. exd6 {[%clk 0:02:25]}  Nf6 {[%clk 0:00:52]} 19. Bd4 {[%clk 0:02:19]}  Ne8 {[%clk 0:00:44]} 20. b3 {[%clk 0:01:38]}  Nxd6 {[%clk 0:00:31]} 21. Bf6 {[%clk 0:01:38]}  Nf5 {[%clk 0:00:31]} 22. Bxd8 {[%clk 0:01:36]}  Rxd8 {[%clk 0:00:32]} 23. Qd2 {[%clk 0:01:29]}  d5 {[%clk 0:00:31]} 24. Kh1 {[%clk 0:01:26]}  h5 {[%clk 0:00:30]} 25. a4 {[%clk 0:01:21]}  b4 {[%clk 0:00:27]} 26. c3 {[%clk 0:01:17]}  a5 {[%clk 0:00:25]} 27. cxb4 {[%clk 0:01:14]}  Nxb4 {[%clk 0:00:25]} 28. Rac1 {[%clk 0:01:13]}  Qa6 {[%clk 0:00:19]} 29. Rc5 {[%clk 0:01:07]}  Qb6 {[%clk 0:00:14]} 30. Rfc1 {[%clk 0:01:06]}  Nh6 {[%clk 0:00:07]} 31. Bf3 {[%clk 0:00:54]}  Nf5 {[%clk 0:00:06]} 32. Rc8 {[%clk 0:00:53]}  Kh7 {[%clk 0:00:04]} 33. Rxd8 {[%clk 0:00:51]}  Qxd8 {[%clk 0:00:05]} 34. Qc3 {[%clk 0:00:48]}  Qb6 {[%clk 0:00:04]} 35. Qc7 {[%clk 0:00:45]}  Qxc7 {[%clk 0:00:04]} 36. Rxc7 {[%clk 0:00:44]}  Kg7 {[%clk 0:00:04]} 37. Rc5 {[%clk 0:00:33]}  Nd4 {[%clk 0:00:03]} 38. Bd1 {[%clk 0:00:33]}  Nd3 {[%clk 0:00:03]} 39. Rxa5 {[%clk 0:00:27]}  Nf2+ {[%clk 0:00:03]} 40. Kg2 {[%clk 0:00:27]}  Nxd1 {[%clk 0:00:03]} 41. b4 {[%clk 0:00:27]}  Ne3+ {[%clk 0:00:03]} 42. Kf2 {[%clk 0:00:25]}  Nc4 {[%clk 0:00:04]} 43. Ra8 {[%clk 0:00:23]}  Kf6 {[%clk 0:00:04]} 44. a5 {[%clk 0:00:20]}  Nb5 {[%clk 0:00:03]} 45. Rb8 {[%clk 0:00:17]}  Ncd6 {[%clk 0:00:02]} 46. a6 {[%clk 0:00:16]}  d4 {[%clk 0:00:02]} 47. Rb7 {[%clk 0:00:13]}  Kf5 {[%clk 0:00:01]} 48. a7 {[%clk 0:00:11]}  Nxa7 {[%clk 0:00:02]} 49. Rxa7 {[%clk 0:00:11]}  Ke4 {[%clk 0:00:02]} 50. Ke2 {[%clk 0:00:11]}  d3+ {[%clk 0:00:02]} 51. Kd1 {[%clk 0:00:12]}  Ke3 {[%clk 0:00:02]} 52. Rd7 {[%clk 0:00:10]}  Nc4 {[%clk 0:00:02]} 53. b5 {[%clk 0:00:10]}  d2 {[%clk 0:00:00]} 54. Rxd2 {[%clk 0:00:07]} 1-0


[Site "https://www.chess.com"]

[Event "Titled Tuesday Blitz May 30 Early 2023"]
[White "Andreev, Konstantin"]
[Black "Acikel, Mert"]
[WhiteFideId "24239305"]
[BlackFideId "12956465"]
[WhiteElo "2106"]
[BlackElo "2097"]
[Result "1-0"]
[Round "02"]
[TimeControl "180+2"]
[Date "2023.05.30"]
[WhiteClock "0:00:23"]
[BlackClock "0:00:00"]

1. e4 {[%clk 0:03:00]}  e5 {[%clk 0:02:59]} 2. Nf3 {[%clk 0:02:58]}  Nc6 {[%clk 0:02:59]} 3. Bc4 {[%clk 0:02:57]}  Bc5 {[%clk 0:02:59]} 4. c3 {[%clk 0:02:56]}  Nf6 {[%clk 0:02:59]} 5. d4 {[%clk 0:02:56]}  exd4 {[%clk 0:03:00]} 6. b4 {[%clk 0:02:57]}  Bb6 {[%clk 0:02:58]} 7. e5 {[%clk 0:02:54]}  d5 {[%clk 0:02:56]} 8. exf6 {[%clk 0:02:53]}  dxc4 {[%clk 0:02:56]} 9. Qe2+ {[%clk 0:02:52]}  Be6 {[%clk 0:02:51]} 10. b5 {[%clk 0:02:52]}  Na5 {[%clk 0:02:37]} 11. fxg7 {[%clk 0:02:51]}  Rg8 {[%clk 0:02:37]} 12. Nxd4 {[%clk 0:02:51]}  Rxg7 {[%clk 0:02:32]} 13. Nxe6 {[%clk 0:02:46]}  fxe6 {[%clk 0:02:33]} 14. Qh5+ {[%clk 0:02:39]}  Kf8 {[%clk 0:02:24]} 15. Bh6 {[%clk 0:02:33]}  Qf6 {[%clk 0:02:13]} 16. Qf3 {[%clk 0:02:29]}  Qxf3 {[%clk 0:02:02]} 17. gxf3 {[%clk 0:02:30]}  Kf7 {[%clk 0:02:02]} 18. Bxg7 {[%clk 0:02:29]}  Kxg7 {[%clk 0:02:02]} 19. Nd2 {[%clk 0:02:29]}  Rd8 {[%clk 0:02:02]} 20. Ne4 {[%clk 0:02:25]}  Rd3 {[%clk 0:01:53]} 21. Rd1 {[%clk 0:02:18]}  Rxf3 {[%clk 0:01:45]} 22. Rg1+ {[%clk 0:02:16]}  Kh6 {[%clk 0:01:42]} 23. Rg4 {[%clk 0:02:05]}  Rh3 {[%clk 0:01:31]} 24. Rd7 {[%clk 0:01:57]}  Rd3 {[%clk 0:01:20]} 25. Rxd3 {[%clk 0:01:52]}  cxd3 {[%clk 0:01:21]} 26. Kd2 {[%clk 0:01:52]}  Nc4+ {[%clk 0:01:21]} 27. Kc1 {[%clk 0:01:49]}  Ne5 {[%clk 0:00:57]} 28. Rg3 {[%clk 0:01:47]}  c6 {[%clk 0:00:31]} 29. bxc6 {[%clk 0:01:45]}  bxc6 {[%clk 0:00:32]} 30. f4 {[%clk 0:01:43]}  Ng6 {[%clk 0:00:32]} 31. Rg4 {[%clk 0:01:39]}  Bc7 {[%clk 0:00:33]} 32. Nc5 {[%clk 0:01:32]}  Bxf4+ {[%clk 0:00:30]} 33. Kd1 {[%clk 0:01:32]}  Bxh2 {[%clk 0:00:29]} 34. Nxd3 {[%clk 0:01:31]}  e5 {[%clk 0:00:28]} 35. Ra4 {[%clk 0:01:30]}  Bg1 {[%clk 0:00:26]} 36. Ra5 {[%clk 0:01:25]}  e4 {[%clk 0:00:23]} 37. Nc5 {[%clk 0:01:23]}  e3 {[%clk 0:00:21]} 38. Nd3 {[%clk 0:01:17]}  c5 {[%clk 0:00:08]} 39. Ke2 {[%clk 0:00:46]}  c4 {[%clk 0:00:08]} 40. Ne1 {[%clk 0:00:44]}  Bf2 {[%clk 0:00:08]} 41. Rf5 {[%clk 0:00:40]}  Kg7 {[%clk 0:00:07]} 42. Nc2 {[%clk 0:00:37]}  Ne7 {[%clk 0:00:04]} 43. Rf3 {[%clk 0:00:37]}  Nd5 {[%clk 0:00:05]} 44. Kf1 {[%clk 0:00:26]}  Nxc3 {[%clk 0:00:05]} 45. a3 {[%clk 0:00:26]}  Ne4 {[%clk 0:00:05]} 46. Ke2 {[%clk 0:00:24]}  h5 {[%clk 0:00:04]} 47. Nxe3 {[%clk 0:00:23]}  Bxe3 {[%clk 0:00:02]} 48. Kxe3 {[%clk 0:00:24]}  Ng5 {[%clk 0:00:02]} 49. Rg3 {[%clk 0:00:24]}  Kf6 {[%clk 0:00:02]} 50. Kf4 {[%clk 0:00:24]}  h4 {[%clk 0:00:00]} 51. Rxg5 {[%clk 0:00:23]} 1-0


[Site "https://www.chess.com"]

[Event "Titled Tuesday Blitz May 30 Early 2023"]
[White "Ciuffoletti, Paolo"]
[Black "Gurevich, Dmitry"]
[WhiteFideId "807630"]
[BlackFideId "2000407"]
[WhiteElo "2143"]
[BlackElo "2506"]
[Result "0-1"]
[Round "02"]
[TimeControl "180+2"]
[Date "2023.05.30"]
[WhiteClock "0:00:00"]
[BlackClock "0:01:00"]

1. e4 {[%clk 0:03:00]}  c5 {[%clk 0:02:57]} 2. d4 {[%clk 0:03:00]}  cxd4 {[%clk 0:02:57]} 3. c3 {[%clk 0:03:00]}  dxc3 {[%clk 0:02:57]} 4. Nxc3 {[%clk 0:03:00]}  d6 {[%clk 0:02:57]} 5. Nf3 {[%clk 0:03:00]}  e6 {[%clk 0:02:57]} 6. Bc4 {[%clk 0:03:00]}  a6 {[%clk 0:02:57]} 7. O-O {[%clk 0:02:59]}  Be7 {[%clk 0:02:57]} 8. Qe2 {[%clk 0:02:59]}  b5 {[%clk 0:02:56]} 9. Bb3 {[%clk 0:02:58]}  Nf6 {[%clk 0:02:56]} 10. Rd1 {[%clk 0:02:57]}  Nbd7 {[%clk 0:02:52]} 11. Bf4 {[%clk 0:02:46]}  Qb6 {[%clk 0:02:50]} 12. Rd2 {[%clk 0:02:26]}  b4 {[%clk 0:02:45]} 13. Na4 {[%clk 0:02:18]}  Qb5 {[%clk 0:02:43]} 14. Qe3 {[%clk 0:02:00]}  e5 {[%clk 0:02:25]} 15. Bg5 {[%clk 0:01:56]}  O-O {[%clk 0:02:12]} 16. h3 {[%clk 0:01:28]}  Bb7 {[%clk 0:02:06]} 17. Nh4 {[%clk 0:01:00]}  Bxe4 {[%clk 0:01:59]} 18. Rad1 {[%clk 0:00:46]}  Rac8 {[%clk 0:01:51]} 19. Rxd6 {[%clk 0:00:39]}  Bxd6 {[%clk 0:01:48]} 20. Rxd6 {[%clk 0:00:40]}  Bg6 {[%clk 0:01:42]} 21. Nxg6 {[%clk 0:00:34]}  hxg6 {[%clk 0:01:41]} 22. Qd2 {[%clk 0:00:26]}  Nc5 {[%clk 0:01:27]} 23. Nxc5 {[%clk 0:00:20]}  Qxc5 {[%clk 0:01:25]} 24. Bxf6 {[%clk 0:00:20]}  Qc1+ {[%clk 0:01:23]} 25. Qxc1 {[%clk 0:00:17]}  Rxc1+ {[%clk 0:01:23]} 26. Kh2 {[%clk 0:00:18]}  gxf6 {[%clk 0:01:22]} 27. Rxf6 {[%clk 0:00:18]}  Kg7 {[%clk 0:01:19]} 28. Rxa6 {[%clk 0:00:18]}  Re1 {[%clk 0:01:15]} 29. Ra7 {[%clk 0:00:16]}  Re2 {[%clk 0:01:14]} 30. Kg3 {[%clk 0:00:15]}  Rxb2 {[%clk 0:01:13]} 31. Rb7 {[%clk 0:00:15]}  Rd2 {[%clk 0:01:07]} 32. Rxb4 {[%clk 0:00:14]}  f5 {[%clk 0:01:07]} 33. Rb7+ {[%clk 0:00:13]}  Kh6 {[%clk 0:01:06]} 34. f3 {[%clk 0:00:12]}  f4+ {[%clk 0:01:01]} 35. Kh2 {[%clk 0:00:00]}  e4 {[%clk 0:01:00]} 0-1


[Site "https://www.chess.com"]

[Event "Titled Tuesday Blitz May 30 Early 2023"]
[White "Brown, Raehanna"]
[Black "Fishchuk, Vladyslav"]
[WhiteFideId "7402740"]
[BlackFideId "34122117"]
[WhiteElo "1655"]
[BlackElo "2082"]
[Result "0-1"]
[Round "02"]
[TimeControl "180+2"]
[Date "2023.05.30"]
[WhiteClock "0:00:01"]
[BlackClock "0:00:18"]

1. c4 {[%clk 0:03:00]}  e5 {[%clk 0:02:59]} 2. Nc3 {[%clk 0:02:59]}  Bb4 {[%clk 0:02:59]} 3. Nf3 {[%clk 0:02:59]}  d6 {[%clk 0:02:56]} 4. g3 {[%clk 0:02:58]}  Bxc3 {[%clk 0:02:56]} 5. bxc3 {[%clk 0:02:57]}  f5 {[%clk 0:02:54]} 6. d3 {[%clk 0:02:55]}  Nf6 {[%clk 0:02:55]} 7. Bg2 {[%clk 0:02:53]}  O-O {[%clk 0:02:55]} 8. O-O {[%clk 0:02:52]}  Nbd7 {[%clk 0:02:43]} 9. Rb1 {[%clk 0:02:28]}  Rb8 {[%clk 0:02:33]} 10. Qa4 {[%clk 0:02:05]}  a6 {[%clk 0:02:32]} 11. Ba3 {[%clk 0:01:59]}  b6 {[%clk 0:02:30]} 12. d4 {[%clk 0:01:49]}  Re8 {[%clk 0:02:16]} 13. c5 {[%clk 0:01:39]}  dxc5 {[%clk 0:01:54]} 14. dxc5 {[%clk 0:01:34]}  b5 {[%clk 0:01:54]} 15. Qb3+ {[%clk 0:01:33]}  Kh8 {[%clk 0:01:50]} 16. Ng5 {[%clk 0:01:32]}  Rf8 {[%clk 0:00:52]} 17. Ne6 {[%clk 0:01:06]}  Qe8 {[%clk 0:00:47]} 18. Nxf8 {[%clk 0:01:02]}  Nxf8 {[%clk 0:00:47]} 19. c4 {[%clk 0:00:40]}  Be6 {[%clk 0:00:45]} 20. Bd5 {[%clk 0:00:40]}  c6 {[%clk 0:00:30]} 21. Bxe6 {[%clk 0:00:34]}  Nxe6 {[%clk 0:00:31]} 22. e3 {[%clk 0:00:15]}  Qh5 {[%clk 0:00:30]} 23. cxb5 {[%clk 0:00:11]}  axb5 {[%clk 0:00:31]} 24. Qxe6 {[%clk 0:00:11]}  Ng4 {[%clk 0:00:18]} 25. h4 {[%clk 0:00:10]}  f4 {[%clk 0:00:18]} 26. Rfd1 {[%clk 0:00:07]}  Re8 {[%clk 0:00:17]} 27. Qd6 {[%clk 0:00:06]}  fxe3 {[%clk 0:00:17]} 28. fxe3 {[%clk 0:00:04]}  Nxe3 {[%clk 0:00:18]} 29. Re1 {[%clk 0:00:03]}  Ng4 {[%clk 0:00:18]} 30. Rbd1 {[%clk 0:00:01]}  h6 {[%clk 0:00:18]} 31. Qxc6 {[%clk 0:00:02]}  Qf7 {[%clk 0:00:17]} 32. Rd7 {[%clk 0:00:02]}  Qf2+ {[%clk 0:00:17]} 33. Kh1 {[%clk 0:00:01]}  Qh2# {[%clk 0:00:18]} 0-1


[Site "https://www.chess.com"]

[Event "Titled Tuesday Blitz May 30 Early 2023"]
[White "Marn, Jan"]
[Black "Zainullina, Nataliya"]
[WhiteFideId "14619245"]
[BlackFideId "4145488"]
[WhiteElo "2242"]
[BlackElo "2174"]
[Result "1/2-1/2"]
[Round "02"]
[TimeControl "180+2"]
[Date "2023.05.30"]
[WhiteClock "0:00:05"]
[BlackClock "0:01:02"]

1. d4 {[%clk 0:03:00]}  Nf6 {[%clk 0:02:59]} 2. Nf3 {[%clk 0:03:01]}  e6 {[%clk 0:02:57]} 3. e3 {[%clk 0:03:00]}  a6 {[%clk 0:02:56]} 4. Bd3 {[%clk 0:02:56]}  b5 {[%clk 0:02:56]} 5. a4 {[%clk 0:02:56]}  b4 {[%clk 0:02:55]} 6. O-O {[%clk 0:02:56]}  Bb7 {[%clk 0:02:55]} 7. Re1 {[%clk 0:02:52]}  Be7 {[%clk 0:02:55]} 8. e4 {[%clk 0:02:52]}  O-O {[%clk 0:02:54]} 9. e5 {[%clk 0:02:37]}  Nd5 {[%clk 0:02:53]} 10. Nbd2 {[%clk 0:02:37]}  c5 {[%clk 0:02:52]} 11. Ne4 {[%clk 0:02:21]}  cxd4 {[%clk 0:02:50]} 12. Neg5 {[%clk 0:02:21]}  h6 {[%clk 0:02:49]} 13. Nh3 {[%clk 0:02:18]}  Nc6 {[%clk 0:02:46]} 14. Qe2 {[%clk 0:02:18]}  f5 {[%clk 0:02:43]} 15. exf6 {[%clk 0:02:13]}  Nxf6 {[%clk 0:02:44]} 16. Nh4 {[%clk 0:02:04]}  e5 {[%clk 0:02:37]} 17. Nf5 {[%clk 0:01:23]}  d5 {[%clk 0:02:28]} 18. Bxh6 {[%clk 0:01:11]}  gxh6 {[%clk 0:02:26]} 19. Nxh6+ {[%clk 0:01:09]}  Kh8 {[%clk 0:02:27]} 20. Ng5 {[%clk 0:01:06]}  Qe8 {[%clk 0:02:23]} 21. Ne6 {[%clk 0:01:01]}  e4 {[%clk 0:02:19]} 22. Nxf8 {[%clk 0:00:29]}  Qxf8 {[%clk 0:02:16]} 23. Nf5 {[%clk 0:00:29]}  exd3 {[%clk 0:02:15]} 24. Qxd3 {[%clk 0:00:29]}  Bd6 {[%clk 0:02:05]} 25. Re6 {[%clk 0:00:22]}  Rd8 {[%clk 0:01:05]} 26. Rae1 {[%clk 0:00:12]}  Bc8 {[%clk 0:01:05]} 27. Qh3+ {[%clk 0:00:10]}  Kg8 {[%clk 0:01:04]} 28. Nh6+ {[%clk 0:00:10]}  Kg7 {[%clk 0:01:04]} 29. Nf5+ {[%clk 0:00:09]}  Kg8 {[%clk 0:01:04]} 30. Nh6+ {[%clk 0:00:05]}  Kg7 {[%clk 0:01:03]} 31. Nf5+ {[%clk 0:00:05]}  Kg8 {[%clk 0:01:02]} 1/2-1/2


[Site "https://www.chess.com"]